[Event "Nové Hrady - Blesk"]
[Site "Nové Hrady, Czech Republic"]
[Date "2023.08.17"]
[Round "1.1"]
[White "Dudkova, Danka"]
[Black "Pulpan, Jakub"]
[Result "0-1"]
[TimeControl "2x3+2s"]
[WhiteFideId "23718439"]
[BlackFideId "302759"]
[WhiteElo "1650"]
[BlackElo "2452"]

1. e4 {[%clk 00:03:03]} {[%emt 00:59:05]} c5 {[%clk 00:03:03]} {[%emt
00:00:01]} 2. Nf3 {[%clk 00:03:03]} Nc6 {[%clk 00:03:04]} 3. d4 {[%clk
00:03:04]} cxd4 {[%clk 00:03:05]} {[%emt 00:00:04]} 4. Nxd4 {[%clk 00:03:05]}
{[%emt 00:00:01]} g6 {[%clk 00:03:05]} {[%emt 00:00:02]} 5. Be3 {[%clk
00:03:00]} {[%emt 00:00:06]} Bg7 {[%clk 00:03:06]} {[%emt 00:00:02]} 6. Nc3
{[%clk 00:03:01]} Nf6 {[%clk 00:03:06]} 7. Be2 {[%clk 00:02:58]} {[%emt
00:00:06]} O-O {[%clk 00:03:06]} {[%emt 00:00:02]} 8. Qd2 {[%clk 00:02:50]}
{[%emt 00:00:10]} d5 {[%clk 00:03:05]} {[%emt 00:00:03]} 9. Nxc6 {[%clk
00:02:37]} {[%emt 00:00:15]} bxc6 {[%clk 00:03:06]} 10. e5 {[%clk 00:02:38]}
{[%emt 00:00:03]} Nd7 {[%clk 00:03:03]} {[%emt 00:00:05]} 11. f4 {[%clk
00:02:39]} e6 {[%clk 00:03:04]} {[%emt 00:00:03]} 12. O-O {[%clk 00:02:38]}
{[%emt 00:00:02]} c5 {[%clk 00:03:04]} 13. Nb5 {[%clk 00:02:23]} {[%emt
00:00:18]} Ba6 {[%clk 00:02:55]} {[%emt 00:00:12]} 14. Nd6 {[%clk 00:02:11]}
{[%emt 00:00:15]} Bxe2 {[%clk 00:02:54]} {[%emt 00:00:02]} 15. Qxe2 {[%clk
00:02:11]} Qc7 {[%clk 00:02:26]} {[%emt 00:00:32]} 16. Rf3 {[%clk 00:01:58]}
{[%emt 00:00:15]} a6 {[%clk 00:02:18]} {[%emt 00:00:11]} 17. Rh3 {[%clk
00:01:36]} {[%emt 00:00:24]} Nxe5 {[%clk 00:02:11]} {[%emt 00:00:08]} 18. fxe5
{[%clk 00:01:23]} {[%emt 00:00:14]} Bxe5 {[%clk 00:02:12]} 19. Nxf7 {[%clk
00:01:09]} {[%emt 00:00:17]} Rxf7 {[%clk 00:02:12]} {[%emt 00:00:03]} 20. c3
{[%clk 00:01:01]} {[%emt 00:00:11]} Qd6 {[%clk 00:01:35]} {[%emt 00:00:38]} 21.
Rd1 {[%clk 00:01:00]} {[%emt 00:00:02]} Raf8 {[%clk 00:01:31]} {[%emt
00:00:07]} 22. Qc2 {[%clk 00:00:54]} {[%emt 00:00:08]} d4 {[%clk 00:01:24]}
{[%emt 00:00:09]} 23. Bd2 {[%clk 00:00:38]} {[%emt 00:00:17]} c4 {[%clk
00:01:18]} {[%emt 00:00:08]} 24. Qc1 {[%clk 00:00:20]} {[%emt 00:00:21]} d3
{[%clk 00:01:14]} {[%emt 00:00:06]} 25. Re1 {[%clk 00:00:18]} {[%emt 00:00:05]}
Qb6+ {[%clk 00:01:05]} {[%emt 00:00:10]} 26. Be3 {[%clk 00:00:18]} {[%emt
00:00:02]} Qb8 {[%clk 00:00:50]} {[%emt 00:00:16]} 27. Qd2 {[%clk 00:00:19]}
Bf4 {[%clk 00:00:47]} {[%emt 00:00:07]} 28. Rf1 {[%clk 00:00:18]} {[%emt
00:00:03]} Bxh2+ {[%clk 00:00:45]} {[%emt 00:00:04]} 0-1

[Event "Nové Hrady - Blesk"]
[Site "Nové Hrady, Czech Republic"]
[Date "2023.08.17"]
[Round "1.2"]
[White "Zeman, Matyas"]
[Black "Voršilka, Jiří"]
[Result "1-0"]
[TimeControl "2x3+2s"]
[WhiteFideId "364398"]
[BlackFideId "365149"]
[WhiteElo "2254"]
[BlackElo "1463"]

1. Nf3 {[%clk 00:03:01]} {[%emt 00:00:03]} f5 {[%clk 00:03:03]} 2. d3 {[%clk
00:03:02]} {[%emt 00:00:02]} Nf6 {[%clk 00:03:02]} {[%emt 00:00:03]} 3. e4
{[%clk 00:03:03]} fxe4 {[%clk 00:02:56]} {[%emt 00:00:09]} 4. dxe4 {[%clk
00:03:03]} g6 {[%clk 00:02:45]} {[%emt 00:00:13]} 5. e5 {[%clk 00:03:03]}
{[%emt 00:00:02]} Ng8 {[%clk 00:02:44]} {[%emt 00:00:04]} 6. Bd3 {[%clk
00:02:59]} {[%emt 00:00:06]} Bg7 {[%clk 00:02:44]} {[%emt 00:00:02]} 7. h4
{[%clk 00:03:00]} e6 {[%clk 00:02:42]} {[%emt 00:00:04]} 8. h5 {[%clk
00:02:58]} {[%emt 00:00:03]} Ne7 {[%clk 00:02:42]} {[%emt 00:00:03]} 9. h6
{[%clk 00:02:58]} Bf8 {[%clk 00:02:43]} 10. Bg5 {[%clk 00:02:59]} {[%emt
00:00:04]} d6 {[%clk 00:02:33]} {[%emt 00:00:12]} 11. Nc3 {[%clk 00:02:34]}
{[%emt 00:00:27]} Nbc6 {[%clk 00:02:23]} {[%emt 00:00:11]} 12. Qe2 {[%clk
00:02:26]} {[%emt 00:00:11]} d5 {[%clk 00:02:12]} {[%emt 00:00:13]} 13. O-O-O
{[%clk 00:02:21]} {[%emt 00:00:07]} b6 {[%clk 00:01:59]} {[%emt 00:00:14]} 14.
Bf6 {[%clk 00:02:15]} {[%emt 00:00:09]} Rg8 {[%clk 00:02:00]} 15. Ng5 {[%clk
00:02:16]} {[%emt 00:00:02]} d4 {[%clk 00:01:51]} {[%emt 00:00:11]} 16. Nce4
{[%clk 00:02:11]} {[%emt 00:00:06]} Bb7 {[%clk 00:01:46]} {[%emt 00:00:07]} 17.
Nxe6 {[%clk 00:01:56]} {[%emt 00:00:17]} Qd7 {[%clk 00:01:46]} 18. Nxf8 {[%clk
00:01:57]} {[%emt 00:00:02]} Rxf8 {[%clk 00:01:44]} {[%emt 00:00:05]} 19. Bg7
{[%clk 00:01:58]} Rf7 {[%clk 00:01:41]} {[%emt 00:00:06]} 20. Nf6+ {[%clk
00:01:58]} 1-0

[Event "Nové Hrady - Blesk"]
[Site "Nové Hrady, Czech Republic"]
[Date "2023.08.17"]
[Round "1.3"]
[White "Garabik, Marek"]
[Black "Babula, Milan"]
[Result "0-1"]
[TimeControl "2x3+2s"]
[WhiteFideId "23717742"]
[BlackFideId "300632"]
[WhiteElo "1578"]
[BlackElo "2176"]

1. e4 {[%clk 00:03:03]} {[%emt 00:00:02]} Nc6 {[%clk 00:03:02]} {[%emt
00:00:01]} 2. Nc3 {[%clk 00:02:53]} {[%emt 00:00:11]} g6 {[%clk 00:03:03]} 3.
f4 {[%clk 00:02:52]} {[%emt 00:00:06]} Bg7 {[%clk 00:03:04]} {[%emt 00:00:01]}
4. Nf3 {[%clk 00:02:53]} e6 {[%clk 00:03:01]} {[%emt 00:00:06]} 5. Bb5 {[%clk
00:02:53]} {[%emt 00:00:02]} Nge7 {[%clk 00:03:01]} {[%emt 00:00:02]} 6. d3
{[%clk 00:02:53]} a6 {[%clk 00:03:01]} {[%emt 00:00:02]} 7. Ba4 {[%clk
00:02:55]} {[%emt 00:00:01]} O-O {[%clk 00:03:00]} {[%emt 00:00:03]} 8. Be3
{[%clk 00:02:55]} b5 {[%clk 00:02:51]} {[%emt 00:00:13]} 9. Bb3 {[%clk
00:02:57]} d5 {[%clk 00:02:51]} {[%emt 00:00:02]} 10. d4 {[%clk 00:02:45]}
{[%emt 00:00:14]} Na5 {[%clk 00:02:43]} {[%emt 00:00:10]} 11. exd5 {[%clk
00:02:33]} {[%emt 00:00:13]} exd5 {[%clk 00:02:35]} {[%emt 00:00:10]} 12. O-O
{[%clk 00:02:28]} {[%emt 00:00:07]} Bg4 {[%clk 00:02:28]} {[%emt 00:00:09]} 13.
h3 {[%clk 00:02:28]} {[%emt 00:00:03]} Bxf3 {[%clk 00:02:20]} {[%emt 00:00:10]}
14. Qxf3 {[%clk 00:02:29]} Nxb3 {[%clk 00:02:21]} {[%emt 00:00:03]} 15. axb3
{[%clk 00:02:29]} c6 {[%clk 00:02:16]} {[%emt 00:00:06]} 16. Ne2 {[%clk
00:02:22]} {[%emt 00:00:09]} Nf5 {[%clk 00:02:15]} {[%emt 00:00:04]} 17. c3
{[%clk 00:02:22]} Re8 {[%clk 00:02:14]} {[%emt 00:00:03]} 18. Bd2 {[%clk
00:02:19]} {[%emt 00:00:05]} a5 {[%clk 00:02:06]} {[%emt 00:00:11]} 19. g4
{[%clk 00:02:20]} {[%emt 00:00:01]} Nd6 {[%clk 00:02:05]} {[%emt 00:00:02]} 20.
Ng3 {[%clk 00:02:19]} {[%emt 00:00:03]} f5 {[%clk 00:01:56]} {[%emt 00:00:12]}
21. Rae1 {[%clk 00:01:54]} {[%emt 00:00:27]} Ne4 {[%clk 00:01:50]} {[%emt
00:00:07]} 22. Bc1 {[%clk 00:01:54]} {[%emt 00:00:02]} Qd7 {[%clk 00:01:44]}
{[%emt 00:00:08]} 23. gxf5 {[%clk 00:01:53]} {[%emt 00:00:02]} gxf5 {[%clk
00:01:45]} {[%emt 00:00:02]} 24. Re3 {[%clk 00:01:51]} {[%emt 00:00:05]} a4
{[%clk 00:01:42]} {[%emt 00:00:04]} 25. bxa4 {[%clk 00:01:52]} {[%emt
00:00:02]} Rxa4 {[%clk 00:01:43]} 26. Qh5 {[%clk 00:01:52]} {[%emt 00:00:02]}
Rf8 {[%clk 00:01:41]} {[%emt 00:00:04]} 27. Kh2 {[%clk 00:01:31]} {[%emt
00:00:23]} b4 {[%clk 00:01:42]} {[%emt 00:00:04]} 0-1

[Event "Nové Hrady - Blesk"]
[Site "Nové Hrady, Czech Republic"]
[Date "2023.08.17"]
[Round "1.4"]
[White "Vybiral, Zdenek"]
[Black "Dudková, Josefína"]
[Result "1-0"]
[TimeControl "2x3+2s"]
[WhiteFideId "305200"]
[BlackFideId "23712350"]
[WhiteElo "2158"]
[BlackElo "1437"]

1. d4 {[%clk 00:03:02]} {[%emt 00:00:02]} Nf6 {[%clk 00:03:02]} {[%emt
00:00:03]} 2. c4 {[%clk 00:03:02]} e5 {[%clk 00:03:02]} {[%emt 00:00:02]} 3.
dxe5 {[%clk 00:03:02]} {[%emt 00:00:02]} Ng4 {[%clk 00:03:03]} {[%emt
00:00:02]} 4. Bf4 {[%clk 00:03:02]} Bc5 {[%clk 00:03:03]} {[%emt 00:00:03]} 5.
e3 {[%clk 00:03:02]} Nc6 {[%clk 00:03:04]} {[%emt 00:00:02]} 6. Qxg4 {[%clk
00:02:57]} {[%emt 00:00:06]} g6 {[%clk 00:02:18]} {[%emt 00:00:49]} 7. Qg3
{[%clk 00:02:33]} {[%emt 00:00:25]} d6 {[%clk 00:01:43]} {[%emt 00:00:38]} 8.
exd6 {[%clk 00:02:24]} {[%emt 00:00:10]} cxd6 {[%clk 00:01:43]} {[%emt
00:00:02]} 9. Nc3 {[%clk 00:02:19]} {[%emt 00:00:08]} Bf5 {[%clk 00:01:28]}
{[%emt 00:00:17]} 10. a3 {[%clk 00:01:56]} {[%emt 00:00:25]} a6 {[%clk
00:01:07]} {[%emt 00:00:22]} 11. Nf3 {[%clk 00:01:36]} {[%emt 00:00:22]} Qd7
{[%clk 00:00:52]} {[%emt 00:00:17]} 12. Be2 {[%clk 00:00:59]} {[%emt 00:00:39]}
O-O-O {[%clk 00:00:48]} {[%emt 00:00:06]} 13. O-O {[%clk 00:00:59]} {[%emt
00:00:02]} h5 {[%clk 00:00:44]} {[%emt 00:00:07]} 14. Rfd1 {[%clk 00:00:51]}
{[%emt 00:00:09]} Qe7 {[%clk 00:00:38]} {[%emt 00:00:08]} 15. Nd5 {[%clk
00:00:46]} {[%emt 00:00:07]} Qe6 {[%clk 00:00:33]} {[%emt 00:00:07]} 16. b4
{[%clk 00:00:36]} {[%emt 00:00:12]} Ba7 {[%clk 00:00:33]} {[%emt 00:00:03]} 17.
Rac1 {[%clk 00:00:34]} {[%emt 00:00:04]} f6 {[%clk 00:00:31]} {[%emt 00:00:04]}
18. b5 {[%clk 00:00:34]} {[%emt 00:00:02]} Ne5 {[%clk 00:00:23]} {[%emt
00:00:10]} 19. Nd4 {[%clk 00:00:25]} {[%emt 00:00:11]} Qd7 {[%clk 00:00:21]}
{[%emt 00:00:04]} 20. Nxf5 {[%clk 00:00:19]} {[%emt 00:00:08]} gxf5 {[%clk
00:00:18]} {[%emt 00:00:05]} 21. Nxf6 {[%clk 00:00:18]} {[%emt 00:00:02]} Qf7
{[%clk 00:00:16]} {[%emt 00:00:05]} 22. Nd5 {[%clk 00:00:18]} {[%emt 00:00:02]}
h4 {[%clk 00:00:13]} {[%emt 00:00:04]} 23. Qh3 {[%clk 00:00:19]} Rdg8 {[%clk
00:00:11]} {[%emt 00:00:06]} 24. Qxf5+ {[%emt 00:00:06]} Qxf5 {[%clk 00:00:09]}
{[%emt 00:00:02]} 25. Ne7+ {[%clk 00:00:18]} Kb8 {[%clk 00:00:10]} 26. Nxf5
{[%clk 00:00:19]} h3 {[%clk 00:00:10]} {[%emt 00:00:03]} 27. g3 {[%clk
00:00:18]} Rf8 {[%clk 00:00:06]} {[%emt 00:00:06]} 28. Nxd6 {[%clk 00:00:19]}
Ng4 {[%clk 00:00:05]} {[%emt 00:00:05]} 29. Nf7+ {[%clk 00:00:20]} {[%emt
00:00:01]} Rxf7 {[%clk 00:03:02]} {[%emt 00:00:04]} 1-0

[Event "Nové Hrady - Blesk"]
[Site "Nové Hrady, Czech Republic"]
[Date "2023.08.17"]
[Round "1.5"]
[White "Hokr, Matyas"]
[Black "Papacek, Stepan"]
[Result "0-1"]
[TimeControl "2x3+2s"]
[WhiteFideId "23734663"]
[BlackFideId "301035"]
[WhiteElo "1472"]
[BlackElo "2137"]

1. Nf3 {[%clk 00:03:01]} e6 {[%clk 00:03:03]} 2. b3 {[%clk 00:03:03]} d5 {[%clk
00:03:01]} 3. Bb2 {[%clk 00:03:03]} c5 {[%clk 00:03:01]} 4. e3 {[%clk
00:03:05]} Nc6 {[%clk 00:03:02]} 5. d4 {[%clk 00:03:06]} Nf6 {[%clk 00:03:01]}
6. Bd3 {[%clk 00:03:03]} a6 {[%clk 00:02:59]} 7. c4 {[%clk 00:03:03]} dxc4
{[%clk 00:02:44]} 8. bxc4 {[%clk 00:03:02]} cxd4 {[%clk 00:02:35]} 9. exd4
{[%clk 00:03:02]} Bb4+ {[%clk 00:02:35]} 10. Ke2 {[%clk 00:02:47]} O-O {[%clk
00:02:33]} 11. a3 {[%clk 00:02:48]} Be7 {[%clk 00:02:25]} 12. Re1 {[%clk
00:02:49]} b5 {[%clk 00:02:14]} 13. Kf1 {[%clk 00:02:46]} bxc4 {[%clk
00:02:11]} 14. Bxc4 {[%clk 00:02:47]} Rb8 {[%clk 00:02:09]} 15. Qc2 {[%clk
00:02:39]} Na5 {[%clk 00:02:06]} 16. Bd3 {[%clk 00:02:33]} Bb7 {[%clk
00:02:06]} 17. Nbd2 {[%clk 00:02:16]} Bd5 {[%clk 00:02:03]} 18. Ng5 {[%clk
00:02:00]} h6 {[%clk 00:02:01]} 19. Nge4 {[%clk 00:01:58]} Qb6 {[%clk
00:01:58]} 20. Rab1 {[%clk 00:01:54]} Rfc8 {[%clk 00:01:57]} 21. Qd1 {[%clk
00:01:42]} Nb3 {[%clk 00:01:50]} 22. Nxb3 Qxb3 {[%clk 00:01:48]} 23. Qxb3
{[%clk 00:01:18]} Rxb3 {[%clk 00:01:49]} 24. Bxa6 {[%clk 00:01:14]} Rcb8 {[%clk
00:01:49]} 25. Nxf6+ {[%clk 00:01:02]} gxf6 {[%clk 00:01:48]} 0-1

[Event "Nové Hrady - Blesk"]
[Site "Nové Hrady, Czech Republic"]
[Date "2023.08.17"]
[Round "1.6"]
[White "Richtrova, Eliska"]
[Black "Mácová, Markéta"]
[Result "1-0"]
[TimeControl "2x3+2s"]
[WhiteFideId "300683"]
[BlackFideId "23715588"]
[WhiteElo "2122"]
[BlackElo "1304"]

1. e4 {[%clk 00:03:01]} {[%emt 00:00:02]} g6 {[%clk 00:03:03]} 2. d4 {[%clk
00:03:01]} {[%emt 00:00:04]} Bg7 {[%clk 00:03:04]} 3. Nc3 {[%clk 00:02:59]}
{[%emt 00:00:05]} d6 {[%clk 00:03:05]} 4. Bc4 {[%clk 00:02:58]} {[%emt
00:00:03]} Nf6 {[%clk 00:03:05]} {[%emt 00:00:02]} 5. Qe2 {[%clk 00:02:59]} Be6
{[%clk 00:03:04]} {[%emt 00:00:05]} 6. Bxe6 {[%clk 00:02:51]} {[%emt 00:00:09]}
fxe6 {[%clk 00:03:05]} 7. Nf3 {[%clk 00:02:52]} {[%emt 00:00:02]} Nbd7 {[%clk
00:03:05]} 8. Bg5 {[%clk 00:02:34]} {[%emt 00:00:20]} c6 {[%clk 00:03:03]}
{[%emt 00:00:04]} 9. O-O-O {[%clk 00:02:32]} {[%emt 00:00:04]} Qb6 {[%clk
00:03:03]} {[%emt 00:00:02]} 10. e5 {[%clk 00:02:23]} {[%emt 00:00:11]} Nd5
{[%clk 00:02:44]} {[%emt 00:00:21]} 11. exd6 {[%clk 00:02:10]} {[%emt
00:00:14]} exd6 {[%clk 00:02:41]} {[%emt 00:00:05]} 12. Qxe6+ {[%clk 00:02:08]}
{[%emt 00:00:05]} Kf8 {[%clk 00:02:27]} {[%emt 00:00:16]} 13. Qxd6+ {[%clk
00:01:48]} {[%emt 00:00:22]} Kg8 {[%clk 00:02:16]} {[%emt 00:00:13]} 14. Nxd5
{[%clk 00:01:27]} {[%emt 00:00:24]} cxd5 {[%clk 00:01:32]} {[%emt 00:00:45]} 15.
Qxd5+ {[%clk 00:01:26]} {[%emt 00:00:02]} Kf8 {[%clk 00:01:31]} {[%emt
00:00:04]} 16. Qxd7 {[%clk 00:01:24]} {[%emt 00:00:04]} Re8 {[%clk 00:00:59]}
{[%emt 00:00:34]} 17. Rhe1 {[%clk 00:01:23]} {[%emt 00:00:03]} Rb8 {[%clk
00:00:36]} {[%emt 00:00:25]} 18. Be7+ {[%clk 00:01:19]} {[%emt 00:00:06]} Kg8
{[%clk 00:00:29]} {[%emt 00:00:09]} 19. Qd5+ {[%clk 00:01:20]} Qe6 {[%clk
00:00:28]} {[%emt 00:00:03]} 20. Qxe6# 1-0

[Event "Nové Hrady - Blesk"]
[Site "Nové Hrady, Czech Republic"]
[Date "2023.08.17"]
[Round "1.8"]
[White "Hak, David"]
[Black "Mores, Antonin"]
[Result "1-0"]
[TimeControl "2x3+2s"]
[WhiteFideId "377007"]
[BlackFideId "23711485"]
[WhiteElo "2037"]
[BlackElo "1342"]

1. d4 {[%clk 00:03:02]} {[%emt 00:04:53]} d5 {[%clk 00:03:03]} {[%emt
00:00:02]} 2. c4 {[%clk 00:03:03]} e6 {[%clk 00:03:04]} 3. Nc3 {[%clk
00:03:04]} Nf6 {[%clk 00:03:05]} {[%emt 00:00:03]} 4. Nf3 {[%clk 00:03:05]}
{[%emt 00:00:01]} h6 {[%clk 00:02:47]} {[%emt 00:00:26]} 5. g3 {[%clk
00:03:05]} c5 {[%clk 00:02:40]} {[%emt 00:00:05]} 6. cxd5 {[%clk 00:03:04]}
{[%emt 00:00:02]} exd5 {[%clk 00:02:41]} 7. Bg2 {[%clk 00:03:05]} {[%emt
00:00:02]} cxd4 {[%clk 00:02:41]} {[%emt 00:00:03]} 8. Nxd4 {[%clk 00:03:06]}
Bb4 {[%clk 00:02:30]} {[%emt 00:00:14]} 9. Qa4+ {[%clk 00:03:02]} {[%emt
00:00:07]} Nc6 {[%clk 00:02:28]} {[%emt 00:00:04]} 10. Nxc6 {[%clk 00:03:02]}
{[%emt 00:00:02]} bxc6 {[%clk 00:02:29]} 11. Qxb4 {[%clk 00:03:01]} {[%emt
00:00:02]} Bf5 {[%clk 00:02:09]} {[%emt 00:00:21]} 12. Bf4 {[%clk 00:02:53]}
{[%emt 00:00:11]} Rc8 {[%clk 00:02:05]} {[%emt 00:00:06]} 13. Qc5 {[%clk
00:02:39]} {[%emt 00:00:15]} Qe7 {[%clk 00:01:55]} {[%emt 00:00:13]} 14. Bd6
{[%clk 00:02:33]} {[%emt 00:00:08]} Qe6 {[%clk 00:01:36]} {[%emt 00:00:21]} 15.
O-O {[%clk 00:02:22]} {[%emt 00:00:13]} Ne4 {[%emt 00:00:11]} 16. Nxe4 {[%clk
00:02:19]} {[%emt 00:00:03]} Bxe4 {[%clk 00:01:29]} 17. Bxe4 {[%clk 00:02:15]}
{[%emt 00:00:06]} Qxe4 {[%clk 00:01:30]} 18. Qxa7 {[%clk 00:02:13]} {[%emt
00:00:06]} Qe6 {[%clk 00:01:20]} {[%emt 00:00:12]} 19. Bc5 {[%clk 00:02:12]}
{[%emt 00:00:03]} Qd7 {[%clk 00:01:09]} {[%emt 00:00:13]} 20. Qb6 {[%clk
00:02:09]} {[%emt 00:00:05]} f6 {[%clk 00:01:01]} {[%emt 00:00:10]} 21. e4
{[%clk 00:02:05]} {[%emt 00:00:06]} dxe4 {[%clk 00:00:57]} {[%emt 00:00:07]} 22.
Rad1 {[%clk 00:02:03]} {[%emt 00:00:03]} Qe6 {[%clk 00:00:55]} {[%emt
00:00:04]} 23. Rd6 {[%clk 00:01:48]} {[%emt 00:00:17]} Qxa2 {[%clk 00:00:40]}
{[%emt 00:00:17]} 24. Qb7 {[%clk 00:01:42]} {[%emt 00:00:07]} Qf7 {[%clk
00:00:38]} {[%emt 00:00:05]} 25. Qxc8+ {[%emt 00:00:04]} Ke7 {[%emt 00:00:01]}
26. Re6# {[%clk 00:01:39]} {[%emt 00:00:02]} 1-0

[Event "Nové Hrady - Blesk"]
[Site "Nové Hrady, Czech Republic"]
[Date "2023.08.17"]
[Round "1.9"]
[White "Hejda, Ondřej"]
[Black "Hostička, František"]
[Result "0-1"]
[TimeControl "2x3+2s"]
[WhiteFideId "23713623"]
[BlackFideId "302295"]
[WhiteElo "1321"]
[BlackElo "2074"]

1. e4 {[%clk 00:03:02]} {[%emt 00:00:02]} Nf6 {[%clk 00:03:04]} 2. e5 {[%clk
00:03:03]} {[%emt 00:00:02]} Nd5 {[%clk 00:03:05]} 3. c4 {[%clk 00:02:56]}
{[%emt 00:00:10]} Nb6 {[%clk 00:03:06]} 4. d4 {[%emt 00:00:03]} d6 5. exd6
{[%clk 00:02:53]} exd6 {[%clk 00:03:09]} 6. Nf3 {[%clk 00:02:53]} {[%emt
00:00:02]} Be7 {[%clk 00:03:10]} 7. Nc3 {[%clk 00:02:52]} {[%emt 00:00:03]} O-O
{[%clk 00:03:11]} {[%emt 00:00:02]} 8. Bf4 {[%clk 00:02:49]} {[%emt 00:00:04]}
Re8 {[%clk 00:03:08]} {[%emt 00:00:05]} 9. Be2 {[%clk 00:02:49]} {[%emt
00:00:02]} Bf6 {[%clk 00:02:56]} {[%emt 00:00:14]} 10. O-O {[%clk 00:02:46]}
{[%emt 00:00:05]} Bf5 {[%clk 00:02:55]} {[%emt 00:00:03]} 11. Qd2 {[%clk
00:02:37]} {[%emt 00:00:10]} Nc6 {[%clk 00:02:51]} {[%emt 00:00:07]} 12. Rad1
{[%clk 00:02:23]} {[%emt 00:00:16]} h6 {[%clk 00:02:47]} {[%emt 00:00:06]} 13.
a3 {[%clk 00:02:18]} {[%emt 00:00:07]} a5 {[%clk 00:02:43]} {[%emt 00:00:07]}
14. d5 {[%clk 00:02:07]} {[%emt 00:00:12]} Ne7 {[%clk 00:02:34]} {[%emt
00:00:12]} 15. Bd3 {[%clk 00:02:03]} {[%emt 00:00:06]} Qd7 {[%clk 00:02:24]}
{[%emt 00:00:11]} 16. Bxf5 {[%clk 00:02:00]} {[%emt 00:00:05]} Nxf5 {[%clk
00:02:09]} {[%emt 00:00:17]} 17. Rfe1 {[%clk 00:01:54]} {[%emt 00:00:09]} a4
{[%clk 00:01:45]} {[%emt 00:00:26]} 18. Qd3 {[%clk 00:01:44]} {[%emt 00:00:10]}
Ne7 {[%clk 00:01:43]} {[%emt 00:00:05]} 19. Be3 {[%clk 00:01:40]} {[%emt
00:00:06]} Nbc8 {[%clk 00:01:33]} {[%emt 00:00:12]} 20. Bd4 {[%clk 00:01:31]}
{[%emt 00:00:11]} Bxd4 {[%clk 00:01:32]} {[%emt 00:00:02]} 21. Qxd4 {[%clk
00:01:32]} {[%emt 00:00:02]} Nb6 {[%clk 00:01:25]} {[%emt 00:00:09]} 22. c5
{[%clk 00:01:16]} {[%emt 00:00:18]} dxc5 {[%clk 00:01:24]} {[%emt 00:00:03]} 23.
Qxc5 {[%clk 00:01:14]} {[%emt 00:00:03]} Rad8 {[%clk 00:01:19]} {[%emt
00:00:08]} 24. d6 {[%clk 00:01:07]} {[%emt 00:00:09]} Qc6 {[%emt 00:00:23]} 25.
Qxc6 {[%clk 00:00:44]} {[%emt 00:00:24]} Nxc6 {[%clk 00:01:00]} {[%emt
00:00:02]} 26. dxc7 {[%clk 00:00:44]} Rxd1 {[%clk 00:00:48]} {[%emt 00:00:14]}
27. Rxd1 {[%clk 00:00:45]} Rc8 {[%clk 00:00:49]} {[%emt 00:00:02]} 28. Nb5
{[%clk 00:00:40]} {[%emt 00:00:06]} Na8 {[%clk 00:00:41]} {[%emt 00:00:10]} 29.
Nd6 {[%clk 00:00:35]} {[%emt 00:00:07]} Rxc7 {[%clk 00:00:41]} {[%emt
00:00:02]} 30. Re1 {[%clk 00:00:23]} {[%emt 00:00:14]} Nb6 {[%clk 00:00:35]}
{[%emt 00:00:09]} 31. Re4 {[%clk 00:00:18]} {[%emt 00:00:06]} Rd7 {[%clk
00:00:34]} {[%emt 00:00:04]} 0-1

[Event "Nové Hrady - Blesk"]
[Site "Nové Hrady, Czech Republic"]
[Date "2023.08.17"]
[Round "1.10"]
[White "Valenz, Miroslav"]
[Black "Shivairo, Mark"]
[Result "1-0"]
[TimeControl "2x3+2s"]
[WhiteFideId "326283"]
[BlackFideId "23745029"]
[WhiteElo "1929"]
[BlackElo "1198"]

1. e4 {[%clk 00:03:01]} {[%emt 00:00:02]} e5 {[%clk 00:03:04]} 2. Nc3 {[%clk
00:03:03]} {[%emt 00:00:02]} Nf6 {[%clk 00:03:04]} {[%emt 00:00:02]} 3. Bc4
{[%clk 00:03:03]} {[%emt 00:00:01]} Bc5 {[%clk 00:03:03]} {[%emt 00:00:03]} 4.
d3 {[%clk 00:03:04]} {[%emt 00:00:01]} Nc6 {[%clk 00:03:02]} {[%emt 00:00:03]}
5. f4 {[%clk 00:03:04]} d6 {[%clk 00:02:59]} {[%emt 00:00:05]} 6. Nf3 {[%clk
00:03:04]} {[%emt 00:00:03]} Bg4 {[%clk 00:02:57]} {[%emt 00:00:03]} 7. Na4
{[%clk 00:03:04]} {[%emt 00:00:03]} Bb6 {[%clk 00:02:46]} {[%emt 00:00:13]} 8.
Nxb6 {[%clk 00:02:59]} {[%emt 00:00:07]} cxb6 {[%clk 00:02:45]} {[%emt
00:00:02]} 9. h3 {[%clk 00:02:47]} {[%emt 00:00:15]} Bxf3 {[%clk 00:02:34]}
{[%emt 00:00:14]} 10. Qxf3 {[%clk 00:02:47]} Nd4 {[%clk 00:02:34]} {[%emt
00:00:03]} 11. Qf2 {[%clk 00:02:31]} {[%emt 00:00:18]} b5 {[%clk 00:02:14]}
{[%emt 00:00:22]} 12. Bb3 {[%clk 00:02:25]} {[%emt 00:00:08]} Rc8 {[%clk
00:01:57]} {[%emt 00:00:18]} 13. O-O {[%clk 00:02:19]} {[%emt 00:00:08]} Nxb3
{[%clk 00:01:39]} {[%emt 00:00:21]} 14. axb3 {[%clk 00:02:20]} {[%emt
00:00:02]} a6 {[%clk 00:01:39]} {[%emt 00:00:02]} 15. fxe5 {[%clk 00:02:18]}
{[%emt 00:00:03]} dxe5 {[%clk 00:01:38]} {[%emt 00:00:02]} 16. Bg5 {[%clk
00:02:17]} {[%emt 00:00:03]} Rc6 {[%clk 00:01:32]} {[%emt 00:00:08]} 17. Qg3
{[%clk 00:01:57]} {[%emt 00:00:22]} Rxc2 {[%clk 00:00:54]} {[%emt 00:00:40]} 18.
Qxe5+ {[%clk 00:01:42]} {[%emt 00:00:18]} Qe7 {[%clk 00:00:33]} {[%emt
00:00:28]} 19. Bxf6 {[%clk 00:01:42]} Qxe5 {[%clk 00:00:30]} {[%emt 00:00:04]}
20. Bxe5 {[%clk 00:01:42]} {[%emt 00:00:02]} O-O {[%clk 00:00:23]} {[%emt
00:00:10]} 21. Rac1 {[%clk 00:01:41]} {[%emt 00:00:02]} Rd2 {[%clk 00:00:19]}
{[%emt 00:00:06]} 22. Rfd1 {[%clk 00:01:39]} {[%emt 00:00:04]} Re2 {[%clk
00:00:13]} {[%emt 00:00:08]} 23. Kf1 {[%clk 00:01:36]} {[%emt 00:00:06]} Re3
{[%clk 00:00:09]} {[%emt 00:00:06]} 24. Bf4 {[%clk 00:01:32]} {[%emt 00:00:06]}
Rxe4 {[%clk 00:00:04]} {[%emt 00:00:07]} 25. dxe4 {[%clk 00:01:32]} Re8 {[%clk
00:00:05]} {[%emt 00:00:02]} 26. Rd7 {[%clk 00:01:31]} {[%emt 00:00:04]} Kf8
{[%clk 00:00:00]} {[%emt 00:00:05]} 1-0